Cogmind - Beta 11.1 @@@ ROGUE MODE // 2022.10.23 @ 21:49:02 Player: darki Result: Destroyed by as-82572 with Assembled Shotgun Performance ------------- Evolutions (3) 1500 Regions Visited (11) 2200 Robots Destroyed (43) 215 Value Destroyed (898) 898 Prototype IDs (35) 700 Alien Tech Used (0) 0 Bonus (3287) 3287 TOTAL SCORE: 8800 Bonus ------- Pacifist 200 Follower Combat Kills 487 Aligned with FarCom 300 Met Imprinter 300 Destroyed Z-Imprinter 1000 Triggered Deep Caves Wall 500 Exposed GOLEM Chamber 500 Cogmind --------- Core Integrity 0/700 Matter 290/300 Energy 98/100 System Corruption 14% Temperature Cool (84) Movement Core (200) Ox3 Location -7/Deep Caves Parts ------- > --- POWER (1) -------- Zionite Light DM Reactor > --- PROPULSION (6) --- (None) > --- UTILITY (4) ------ Zionite Weapon Casing > --- WEAPON (2) ------- (None) > --- INVENTORY (5) ---- Zionite Light DM Reactor Zionite Weapon Casing Zionite Light Carapace Zionite Laser-M Makeshift Hammer Peak State ------------ > --- POWER ------------ Zionite Light DM Reactor > --- PROPULSION ------- Zionite Glidesys I Zionite Glidesys I Zionite Glidesys I Zionite Glidesys I Zionite Glidesys I Zionite Glidesys I > --- UTILITY ---------- Experimental Heat Sink Large Storage Unit Improved Sensor Array Armor Integrity Analyzer > --- WEAPON ----------- Molecular Deconstructor > --- INVENTORY -------- Light Nuclear Core Improved Treads Disposable Heat Sink High-capacity Matter Pod Improved Power Shielding Zionite Phaser-S Zionite Laser-M Proton Missile Launcher Rocket Launcher Rocket Launcher Missile Launcher Heavy Rocket Launcher Makeshift Hammer [Rating: 81] Favorites ----------- Power Light Nuclear Core Engine Reinforced Ion Engine Power Core Light Nuclear Core Reactor Zionite Light DM Reactor Propulsion Aluminum Leg Treads Light Treads Leg Aluminum Leg Hover Unit Zionite Glidesys I Utility Large Storage Unit Device Disposable Heat Sink Storage Large Storage Unit Processor Armor Integrity Analyzer Hackware Hacking Suite Protection Zionite Weapon Casing Weapon Autogun Energy Gun Improved Medium Laser Ballistic Gun Autogun Launcher Heavy Rocket Launcher Special Weapon Molecular Deconstructor Impact Weapon Heavy Hammer Build | -11 -10 -9 -9 -9 -8 -8 -7 -7 -7 -7 -7 ------- Run | Scr Mat Mat Min Exi Min Mat Fac Low Low Zio Dee Slots Evolved 6 | . . 2 . . . 2 2 . . . . Power . | . . . . . . . . . . . . Propulsion 4 | . . 2 . . . 1 1 . . . . Utility 2 | . . . . . . 1 1 . . . . Weapon . | . . . . . . . . . . . . Parts Attached 112 | . 2 10 2 . 5 6 12 9 6 5 55 Power 11 | . . 2 . . 2 . 1 1 . . 5 Engine 5 | . . 2 . . 2 . 1 . . . . Core 2 | . . . . . . . . 1 . . 1 Reactor 4 | . . . . . . . . . . . 4 Propulsion 45 | . 1 3 1 . 2 3 8 1 3 2 21 Treads 6 | . . . . . 1 . 3 . 1 . 1 Leg 29 | . 1 3 1 . 1 3 3 1 2 2 12 Wheel . | . . . . . . . . . . . . Hover 10 | . . . . . . . 2 . . . 8 Flight . | . . . . . . . . . . . . Utility 17 | . . 2 . . . 1 1 1 . . 12 Device 5 | . . 1 . . . . . 1 . . 3 Storage 3 | . . 1 . . . . . . . . 2 Processor 1 | . . . . . . 1 . . . . . Hackware 1 | . . . . . . . 1 . . . . Protection 7 | . . . . . . . . . . . 7 Artifact . | . . . . . . . . . . . . Weapon 39 | . 1 3 1 . 1 2 2 6 3 3 17 Energy Gun 14 | . 1 1 . . . . . 3 . . 9 Energy Cannon . | . . . . . . . . . . . . Ballistic Gun 6 | . . 1 1 . 1 1 2 . . . . Ballistic Cannon . | . . . . . . . . . . . . Launcher 7 | . . . . . . . . . . 2 5 Special Weapon 6 | . . . . . . . . 2 2 . 2 Impact Weapon 6 | . . 1 . . . 1 . 1 1 1 1 Slashing Weapon . | . . . . . . . . . . . . Piercing Weapon . | . . . . . . . . . . . . Special Melee Weapon . | . . . . . . . . . . . . Unidentified Prototypes 12 | . . 1 . . . . . 2 . . 9 Corrupted Parts 1 | . . . . . 1 . . . . . . System Corruption 6 | . . . . . 6 . . . . . . Parts Lost 48 | . . 2 3 . 1 5 1 3 1 . 32 Power 5 | . . 1 1 . . 1 . 1 . . 1 Propulsion 29 | . . . 2 . . 4 1 1 1 . 20 Utility 9 | . . . . . . . . . . . 9 Weapon 5 | . . 1 . . 1 . . 1 . . 2 Highest Loss Streak 15 | . . 1 2 . 1 3 1 3 1 . 15 To Critical Strikes . | . . . . . . . . . . . . Average Slot Usage (%) 88 | . 74 88 77 77 86 92 93 87 89 92 78 Engine 3 | . 12 9 2 . 8 9 7 1 . . . Core 2 | . . . . . . . . 5 7 7 1 Treads 11 | . . . . . . 9 15 15 21 22 1 Leg 27 | . 22 38 30 33 34 35 10 21 22 23 20 Hover 2 | . . . . . . . 13 1 . . 11 Device 10 | . . 7 11 11 11 9 7 9 15 15 7 Storage 8 | . 14 11 11 11 11 9 7 7 7 7 5 Processor 4 | . . . . . . 2 7 7 7 7 3 Energy Gun 4 | . 24 12 11 11 9 . . 6 . . 8 Ballistic Gun 5 | . . 6 11 11 12 14 6 1 . . . Special Weapon 2 | . . . . . . . . 2 6 6 1 Impact Weapon 1 | . . 1 . . . 3 7 1 . . . Naked Turns 52 | . . . . . . . . . . . 52 Heaviest Build 47 | 14 14 30 30 27 37 37 36 36 35 40 47 Greatest Support 95 | 20 20 40 30 30 40 50 40 40 63 83 95 Greatest Overweight (x) 3 | . 2 . 1 . 1 1 3 1 2 2 3 Average Overweight (x) . | . . . . . . . . . . 1 . Largest Inventory Capacity 15 | 8 8 15 15 15 15 15 15 15 15 15 15 Average Capacity 14 | 8 8 9 15 15 15 15 15 15 15 15 11 Most Carried 15 | 6 7 7 8 15 15 15 14 15 15 15 15 Average Carried 11 | 6 6 5 7 11 14 13 12 13 12 12 9 Final Capacity 15 | 8 8 15 15 15 15 15 15 15 15 15 5 Final Carried 15 | 6 7 7 8 15 14 15 13 14 12 15 5 Class Distribution -------------------- 63% | Scavenger-Mutant 36% | Mutant Dominant Class ---------------- Mutant | -10/Materials Mutant | -9/Materials Mutant | -9/Mines Mutant | -9/Exiles Scavenger-Mutant | -8/Mines Scavenger-Mutant | -8/Materials Mutant | -7/Factory Mutant | -7/Lower Caves Scavenger-Mutant | -7/Lower Caves Scavenger-Mutant | -7/Zion Scavenger-Mutant | -7/Deep Caves Resources | -11 -10 -9 -9 -9 -8 -8 -7 -7 -7 -7 -7 ----------- Run | Scr Mat Mat Min Exi Min Mat Fac Low Low Zio Dee Matter Collected 1857 | 200 . 126 62 4 106 270 28 162 55 50 794 Remotely . | . . . . . . . . . . . . Salvage Created 1833 | . . 368 308 . 233 378 28 51 . . 467 Parts 63 | . . 16 12 . 14 13 . 4 . . 4 Haulers Intercepted 2 | . . 1 . . . 1 . . . . . Recyclers Shooed 3 | . . . 1 . 2 . . . . . . Parts Field Recycled . | . . . . . . . . . . . . Retrieved Matter . | . . . . . . . . . . . . Parts Self-Destructed 4 | . . . . . . . . 4 . . . Prevented 3 | . . . . . . . . 1 2 . . Kills | -11 -10 -9 -9 -9 -8 -8 -7 -7 -7 -7 -7 ------- Run | Scr Mat Mat Min Exi Min Mat Fac Low Low Zio Dee Combat Hostiles Destroyed 90 | . . 9 5 . 5 8 . 2 . . 61 Melee 4 | . . . . . . 4 . . . . . Guns 26 | . . 8 5 . 5 . . 2 . . 6 AOE 54 | . . . . . . . . . . . 54 Classes Destroyed 13 | . . 5 3 . 1 1 1 . . . 2 Worker 2 | . . . 1 . . 1 . . . . . Builder 1 | . . . . . 1 . . . . . . Tunneler 1 | . . . 1 . . . . . . . . Hauler 2 | . . 1 . . . 1 . . . . . Recycler 5 | . . . 2 . 2 1 . . . . . Watcher 1 | . . . . . . . 1 . . . . Swarmer 17 | . . 4 3 . 4 4 . 2 . . . Cutter 1 | . . . . . . 1 . . . . . Grunt 7 | . . 2 2 . 1 2 . . . . . Brawler 1 | . . 1 . . . . . . . . . Sentry 3 | . . 2 . . . 1 . . . . . Z-Light 2 | . . . . . . . . . . . 2 Assembled 59 | . . . . . . . . . . . 59 Best Kill Streak 44 | . . 7 5 . 4 4 1 2 . . 44 Combat Bots Only 44 | . . 7 3 . 3 4 . 2 . . 44 Max Kills in Single Turn 21 | . . 2 2 . 2 1 1 1 . . 21 Gunslinging 1 | . . 1 . . . . . . . . . Exploded 21 | . . . . . . . . . . . 21 Melee 1 | . . . . . . 1 . . . . . Uniques/NPCs Destroyed 1 | . . . . . . . . . . . 1 Z-Imprinter (-7/Deep Caves) Combat | -11 -10 -9 -9 -9 -8 -8 -7 -7 -7 -7 -7 -------- Run | Scr Mat Mat Min Exi Min Mat Fac Low Low Zio Dee Damage Taken 5605 | . 22 407 223 . 133 728 427 291 38 . 3336 Core 1102 | . 11 110 64 . 13 193 49 23 . . 639 Absorbed by Shields . | . . . . . . . . . . . . Redirected to Shielding 317 | . . . . . . . . . . . 317 Core Remaining (%) 78 | 100 95 . . . 53 64 . . . . . Volleys Fired 125 | . . 32 14 . 18 1 . 8 . . 52 Largest 2 | . . 2 2 . 2 1 . 1 . . 2 Hottest 133 | . . 106 79 . 79 23 . 45 . . 133 Shots Fired 204 | . . 60 28 . 35 1 . 8 . . 72 Gun 167 | . . 60 28 . 35 1 . 6 . . 37 Cannon . | . . . . . . . . . . . . Launcher 25 | . . . . . . . . . . . 25 Special 12 | . . . . . . . . 2 . . 10 Kinetic 50 | . . 16 14 . 19 1 . . . . . Thermal 97 | . . 44 14 . 16 . . . . . 23 Explosive 23 | . . . . . . . . . . . 23 Electromagnetic 8 | . . . . . . . . 6 . . 2 Phasic 14 | . . . . . . . . . . . 14 Robot Hit Streak 9 | . . 8 9 . 3 . . 4 . . 6 Robot Miss Streak 5 | . . 2 3 . 5 . . 2 . . 3 Penetration Max . | . . . . . . . . . . . . Secondary Targets 4 | . . 2 . . . . . . . . 2 Max Gunslinging Chain 1 | . . 1 . . . . . . . . 1 Shots Hit Robots 147 | . . 44 18 . 14 19 3 8 . . 41 Core Hits 165 | . . 12 11 . 8 5 . 4 . . 125 Critical Kills 1 | . . . . . . 1 . . . . . Critical Parts Destroyed 4 | . . 1 . . . 3 . . . . . Critical Strikes 12 | . . 6 1 . . 4 . . . . 1 Burn 6 | . . 5 1 . . . . . . . . Smash 5 | . . 1 . . . 4 . . . . . Intensify 1 | . . . . . . . . . . . 1 Melee Attacks 53 | . . 2 . . . 36 5 1 1 8 . Impact 53 | . . 2 . . . 36 5 1 1 8 . Slashing . | . . . . . . . . . . . . Piercing . | . . . . . . . . . . . . Sneak Attacks 5 | . . 1 . . . 4 . . . . . Combat Hostiles . | . . . . . . . . . . . . Follow-up Attacks . | . . . . . . . . . . . . Damage Inflicted 8171 | . . 681 343 . 237 988 149 63 . . 5710 Guns 1928 | . . 580 294 . 236 . . 63 . . 755 Cannons . | . . . . . . . . . . . . Explosions 5004 | . . . 49 . . . . . . . 4955 Melee 1235 | . . 101 . . . 985 149 . . . . Ramming 4 | . . . . . 1 3 . . . . . Kinetic 378 | . . 84 126 . 168 . . . . . . Thermal 1426 | . . 496 217 . 68 . . . . . 645 Explosive 4707 | . . . . . . . . . . . 4707 Electromagnetic 223 | . . . . . . . . 63 . . 160 Impact 1235 | . . 101 . . . 985 149 . . . . Slashing . | . . . . . . . . . . . . Piercing . | . . . . . . . . . . . . Phasic 198 | . . . . . . . . . . . 198 Highest Corruption 14 | . . . . . 6 3 . . . . 14 Average Corruption 4 | . . . . . 6 2 . . . . 4 Corruption Purged . | . . . . . . . . . . . . Corruption Blocked . | . . . . . . . . . . . . Effects 12 | . . . . . . 2 . . . . 10 Message Errors 1 | . . . . . . . . . . . 1 Matter Fused 5 | . . . . . . 2 . . . . 3 Energy Discharges 2 | . . . . . . . . . . . 2 Parts Rejected 2 | . . . . . . . . . . . 2 Data Loss (minor) 2 | . . . . . . . . . . . 2 Overload Shots . | . . . . . . . . . . . . Overflow Damage 619 | . . 81 30 . . 266 42 . . . 200 Projectiles . | . . . . . . . . . . . . Explosions 230 | . . . 30 . . . . . . . 200 Melee 389 | . . 81 . . . 266 42 . . . . Knockbacks 6 | . . . . . . 4 2 . . . . Impact 6 | . . . . . . 4 2 . . . . Kinetic . | . . . . . . . . . . . . Secondary . | . . . . . . . . . . . . Self-Inflicted Damage 227 | . . . 74 . . . . . . . 153 Shots 6 | . . . 2 . . . . . . . 4 Rammed 1 | . . . . . . 1 . . . . . Targets Rammed 3 | . . . . . 1 2 . . . . . Kicked 2 | . . . . . 1 1 . . . . . Crushed . | . . . . . . . . . . . . Highest Temperature 659 | . . 469 115 . 100 1 8 . . . 659 Average Temperature 115 | . . 149 39 . 36 1 8 . . . 136 Received Heat Transfer 898 | . 12 144 36 . 27 99 126 9 . . 445 Effects 15 | . . 6 . . . . . . . . 9 Shutdowns 2 | . . 2 . . . . . . . . . Energy Bleed 2 | . . 1 . . . . . . . . 1 Interference 4 | . . 1 . . . . . . . . 3 Matter Decay 1 | . . . . . . . . . . . 1 Short Circuit 3 | . . . . . . . . . . . 3 Damage (minor) 1 | . . . . . . . . . . . 1 Damage (major) 2 | . . 2 . . . . . . . . . Siege Activations . | . . . . . . . . . . . . Robots Corrupted . | . . . . . . . . . . . . Combat Hostiles . | . . . . . . . . . . . . Parts Fried 12 | . . 1 . . . 8 3 . . . . Impact Corruptions 17 | . . 2 . . . 12 3 . . . . Robots Melted 1 | . . . . . . . . . . . 1 Combat Hostiles 1 | . . . . . . . . . . . 1 Parts Melted 4 | . . 2 1 . . . . . . . 1 Heat Transferred 2925 | . . 1554 494 . 148 . . . . . 729 Parts Sabotaged . | . . . . . . . . . . . . Parts Stolen . | . . . . . . . . . . . . Parts Stripped . | . . . . . . . . . . . . Power Chain Reactions 1 | . . . . . . . . . . . 1 Missiles Intercepted . | . . . . . . . . . . . . Alert | -11 -10 -9 -9 -9 -8 -8 -7 -7 -7 -7 -7 ------- Run | Scr Mat Mat Min Exi Min Mat Fac Low Low Zio Dee Peak Influence 207 | . . 185 207 . 120 159 61 . . . . Initial 38 | . . . 22 . . 7 38 . . . . Average 59 | . . 113 182 . 34 39 57 . . . . Maximum Alert Level 1 | . . . 1 . . . . . . . . Low Security (%) 96 | 100 100 100 42 . 100 100 100 . . . . Level 1 3 | . . . 57 . . . . . . . . Level 2 . | . . . . . . . . . . . . Level 3 . | . . . . . . . . . . . . Level 4 . | . . . . . . . . . . . . Level 5 . | . . . . . . . . . . . . High Security . | . . . . . . . . . . . . Max Security . | . . . . . . . . . . . . Squads Dispatched 8 | . 1 1 . . . 4 2 . . . . Investigation 3 | . 1 1 . . . . 1 . . . . Extermination 1 | . . . . . . . 1 . . . . Reinforcement 4 | . . . . . . 4 . . . . . Assault . | . . . . . . . . . . . . Garrison . | . . . . . . . . . . . . Intercept . | . . . . . . . . . . . . Searches Triggered . | . . . . . . . . . . . . Construction Impeded . | . . . . . . . . . . . . Haulers Reinforced . | . . . . . . . . . . . . Active Scanning Responses . | . . . . . . . . . . . . Cargo Convoy Interrupts . | . . . . . . . . . . . . Stealth | -11 -10 -9 -9 -9 -8 -8 -7 -7 -7 -7 -7 --------- Run | Scr Mat Mat Min Exi Min Mat Fac Low Low Zio Dee Distress Signals 2 | . . 2 . . . . . . . . . Communications Jammed . | . . . . . . . . . . . . Distress Signals . | . . . . . . . . . . . . Times Spotted 158 | . 1 17 5 . 7 16 5 4 2 . 101 Peak Tracking Total 54 | . 1 6 3 . 4 8 4 3 1 . 54 Tactical Retreats 7 | . . . . . 1 1 . . . . 5 Traps | -11 -10 -9 -9 -9 -8 -8 -7 -7 -7 -7 -7 ------- Run | Scr Mat Mat Min Exi Min Mat Fac Low Low Zio Dee Traps Triggered 6 | . 3 . . . . 2 1 . . . . Indirectly . | . . . . . . . . . . . . Trap Hack Attempts . | . . . . . . . . . . . . Triggered . | . . . . . . . . . . . . Disarmed . | . . . . . . . . . . . . Reprogrammed . | . . . . . . . . . . . . Reused . | . . . . . . . . . . . . Traps Extracted . | . . . . . . . . . . . . Installed . | . . . . . . . . . . . . Triggered . | . . . . . . . . . . . . Exploded 2 | . . . . . 2 . . . . . . Machines | -11 -10 -9 -9 -9 -8 -8 -7 -7 -7 -7 -7 ---------- Run | Scr Mat Mat Min Exi Min Mat Fac Low Low Zio Dee Machines Disabled 8 | . . 1 3 . . . . 1 1 . 2 Max in Single Turn 3 | . . 1 3 . . . . 1 1 . 1 Machines Sabotaged . | . . . . . . . . . . . . Garrisons Compromised . | . . . . . . . . . . . . Overloaded Fab Kills . | . . . . . . . . . . . . Hacking | -11 -10 -9 -9 -9 -8 -8 -7 -7 -7 -7 -7 --------- Run | Scr Mat Mat Min Exi Min Mat Fac Low Low Zio Dee Machines Accessed 8 | . . 2 . 2 . 1 2 . 1 . . Terminals 5 | . . 2 . . . 1 2 . . . . Fabricators . | . . . . . . . . . . . . Repair Stations . | . . . . . . . . . . . . Recycling Units . | . . . . . . . . . . . . Scanalyzers . | . . . . . . . . . . . . Garrison Access . | . . . . . . . . . . . . Total Hacks 35 | . . 6 . 24 . 1 3 . 1 . . Successful 26 | . . 1 . 24 . . . . 1 . . Failed 9 | . . 5 . . . 1 3 . . . . Catastrophic 4 | . . 2 . . . . 2 . . . . Database Lockouts . | . . . . . . . . . . . . Manual 9 | . . 3 . 1 . 1 3 1 . . . Terminals 10 | . . 6 . . . 1 3 . . . . Fabricators . | . . . . . . . . . . . . Repair Stations . | . . . . . . . . . . . . Recycling Units . | . . . . . . . . . . . . Scanalyzers . | . . . . . . . . . . . . Garrison Access . | . . . . . . . . . . . . Terminal Hacks 26 | . . 1 . 24 . . . . 1 . . Record 23 | . . . . 23 . . . . . . . Open Door 1 | . . . . . . . . . 1 . . Zone Layout 1 | . . 1 . . . . . . . . . EX-Prototype ID Bank 1 | . . . . 1 . . . . . . . Fabricator Hacks . | . . . . . . . . . . . . Repair Station Hacks . | . . . . . . . . . . . . Recycling Unit Hacks . | . . . . . . . . . . . . Scanalyzer . | . . . . . . . . . . . . Garrison Access Hacks . | . . . . . . . . . . . . Unauthorized Hacks . | . . . . . . . . . . . . Terminals . | . . . . . . . . . . . . Fabricators . | . . . . . . . . . . . . Repair Stations . | . . . . . . . . . . . . Recycling Units . | . . . . . . . . . . . . Scanalyzers . | . . . . . . . . . . . . Garrison Access . | . . . . . . . . . . . . Data Cores Recovered . | . . . . . . . . . . . . Used . | . . . . . . . . . . . . Hacking Detections 4 | . . 2 . . . . 2 . . . . Full Trace Events 3 | . . 2 . . . . 1 . . . . Feedback Events . | . . . . . . . . . . . . Feedback Blocked . | . . . . . . . . . . . . Robot Schematics Acquired 2 | . . . . . . . . . . 2 . Robots Built . | . . . . . . . . . . . . Authchips . | . . . . . . . . . . . . Time . | . . . . . . . . . . . . Total Robot Build Rating . | . . . . . . . . . . . . Part Schematics Acquired 15 | . . . . . . . . . . 15 . Parts Built . | . . . . . . . . . . . . Authchips . | . . . . . . . . . . . . Time . | . . . . . . . . . . . . Total Part Build Rating . | . . . . . . . . . . . . Parts Repaired . | . . . . . . . . . . . . Time . | . . . . . . . . . . . . Parts Recycled . | . . . . . . . . . . . . Recycled Matter . | . . . . . . . . . . . . Retrieved Matter . | . . . . . . . . . . . . Retrieved Components . | . . . . . . . . . . . . Parts Scanalyzed . | . . . . . . . . . . . . Part Schematics Acquired . | . . . . . . . . . . . . Parts Damaged . | . . . . . . . . . . . . Bothacking | -11 -10 -9 -9 -9 -8 -8 -7 -7 -7 -7 -7 ------------ Run | Scr Mat Mat Min Exi Min Mat Fac Low Low Zio Dee Used RIF Installer . | . . . . . . . . . . . . Robots Hacked . | . . . . . . . . . . . . Non-combat . | . . . . . . . . . . . . Combat . | . . . . . . . . . . . . Robot Hacks Applied . | . . . . . . . . . . . . Relay Couplers Released . | . . . . . . . . . . . . Fabnet Peak Effective % . | . . . . . . . . . . . . Robots Rewired . | . . . . . . . . . . . . Allies Hacked . | . . . . . . . . . . . . Hacks Repelled . | . . . . . . . . . . . . Allies | -11 -10 -9 -9 -9 -8 -8 -7 -7 -7 -7 -7 -------- Run | Scr Mat Mat Min Exi Min Mat Fac Low Low Zio Dee Total Allies 12 | . . . . . . . . 2 . 6 4 Largest Group 10 | . . . . . . . . 2 2 8 10 Highest-Rated Group 526 | . . . . . . . . 86 86 262 526 Highest-Rated Ally 119 | . . . . . . . . 46 46 40 119 Total Orders . | . . . . . . . . . . . . Ally Attacks 159 | . . . . . . . . . 7 . 152 Total Damage 3212 | . . . . . . . . . 153 . 3059 Kills 16 | . . . . . . . . . 2 . 14 Allies Corrupted . | . . . . . . . . . . . . Allies Melted . | . . . . . . . . . . . . Field Lobotomies 5 | . . . . . . . . 2 . . 3 Intel | -11 -10 -9 -9 -9 -8 -8 -7 -7 -7 -7 -7 ------- Run | Scr Mat Mat Min Exi Min Mat Fac Low Low Zio Dee Robot Analysis Total . | . . . . . . . . . . . . Derelict Logs Recovered 2 | . . . . . . . . . . 2 . Drone Launches . | . . . . . . . . . . . . Drone Recoveries . | . . . . . . . . . . . . Exploration | -11 -10 -9 -9 -9 -8 -8 -7 -7 -7 -7 -7 ------------- Run | Scr Mat Mat Min Exi Min Mat Fac Low Low Zio Dee Turns Passed 7650 | 2 86 524 183 376 596 1388 368 692 458 2040 937 Spaces Moved 3845 | 2 68 328 108 309 357 360 189 389 236 807 692 Core 107 | . 3 . . . . . . . . . 104 Treads 631 | . . . . . 1 7 116 335 172 . . Legs 2862 | 2 65 328 108 309 356 353 69 54 64 807 347 Wheels . | . . . . . . . . . . . . Hover 245 | . . . . . . . 4 . . . 241 Flight . | . . . . . . . . . . . . Fastest Speed 40 | 120 120 120 120 120 120 120 160 160 160 124 40 Average Speed 154 | 120 122 120 130 120 133 123 172 164 187 246 91 Slowest Speed 290 | 120 190 120 190 120 240 240 290 190 260 260 270 Overloaded Moves . | . . . . . . . . . . . . Propulsion Burnouts . | . . . . . . . . . . . . Robots Hopped . | . . . . . . . . . . . . Cave-ins Triggered . | . . . . . . . . . . . . Exploration Rate (%) 39 | 2 15 25 45 62 64 20 5 48 41 84 60 Regions Visited 11 Branch Regions 7 Pre-discovered Areas 1 | . . . . 1 . . . . . . . Known Exits Taken 1 | . . . . . . . . . . 1 . Unknown Exits Taken 10 | 1 1 1 1 1 1 1 1 1 1 . . Scrap Searched 10 | . . . . . 3 . . 2 . 5 . Spaces Dug 14 | . . . . . . 11 1 . . 2 . Terrain Destroyed 33 | . . . 10 . . 11 1 . . 2 9 Melee 14 | . . . . . . 11 1 . . 2 . Projectile . | . . . . . . . . . . . . AOE 19 | . . . 10 . . . . . . . 9 Terrain Rammed . | . . . . . . . . . . . . Walls Destroyed . | . . . . . . . . . . . . Machines Disabled . | . . . . . . . . . . . . Actions | -11 -10 -9 -9 -9 -8 -8 -7 -7 -7 -7 -7 --------- Run | Scr Mat Mat Min Exi Min Mat Fac Low Low Zio Dee Total 5254 | 1 70 395 124 314 448 1237 219 431 253 851 911 Wait 1023 | . . 19 . . 57 825 13 15 6 23 65 Move 3835 | 1 67 327 107 308 356 360 188 388 235 806 692 Hop . | . . . . . . . . . . . . Pick Up 40 | . 1 4 1 6 5 5 1 3 1 5 8 Fast Attach 60 | . 2 4 1 . 2 3 7 3 . . 38 Attach 29 | . . 4 . . 1 1 4 2 5 3 9 Detach 15 | . . . . . . . . 3 3 2 7 Swap 23 | . . 2 1 . 2 2 1 4 1 2 8 Drop 49 | . . 1 . . 6 3 . 4 1 2 32 Fire 125 | . . 32 14 . 18 1 . 8 . . 52 Melee 53 | . . 2 . . . 36 5 1 1 8 . Ram . | . . . . . . . . . . . . Kick 2 | . . . . . 1 1 . . . . . Crush . | . . . . . . . . . . . . Escape Stasis . | . . . . . . . . . . . . Rewire . | . . . . . . . . . . . . Trap . | . . . . . . . . . . . . Miscellaneous . | . . . . . . . . . . . . Route ------- -11/Scrapyard -10/Materials (discovered 2 exits: *Mat / [*Min]) -9/Materials (discovered 2 exits: [*Min] / [*Sto]) -9/Mines -9/Exiles -8/Mines -8/Materials -7/Factory -7/Lower Caves -7/Lower Caves -7/Zion (discovered 2 exits: *Dee / [*Pro]) -7/Deep Caves History --------- Turn | Location | Event 1 | -11/Scrapyard | Discovered new exit (range 1) 3 | -11/Scrapyard | Entered Materials 11 | -10/Materials | Discovered new exit (range 15) 81 | -10/Materials | Discovered new exit (range 8) 89 | -10/Materials | Entered another Materials area 89 | -9/Materials | Evolved 2 slots: Propulsion x2 199 | -9/Materials | Destroyed 7 combat bots 305 | -9/Materials | Build established: Mutant 476 | -9/Materials | Discovered new exit (range 15) 525 | -9/Materials | Discovered new exit (range 16) 613 | -9/Materials | Entered Mines 769 | -9/Mines | Received a Rocket Launcher from a helpful Derelict 791 | -9/Mines | Deemed a non-threat by the Exiles lab entrance 791 | -9/Mines | Discovered new exit (range 5) 796 | -9/Mines | Entered Exiles 831 | -9/Exiles | Met 8R-AWN 850 | -9/Exiles | Met EX-HEX 885 | -9/Exiles | Met EX-BIN 899 | -9/Exiles | Aligned with FarCom system 900 | -9/Exiles | Given EX-Vault access code 928 | -9/Exiles | Opened EX-Vault 937 | -9/Exiles | Found Field Lobotomy Kit 965 | -9/Exiles | Warned to stay clear of 0b10 Research branches 1064 | -9/Exiles | Met EX-DEC 1073 | -9/Exiles | Learned location of Zion (-7) 1162 | -9/Exiles | Discovered new exit (range 10) 1172 | -9/Exiles | Left Exiles lab with Field Lobotomy Kit 1172 | -9/Exiles | Entered Mines 1759 | -8/Mines | Discovered new exit (range 6) 1768 | -8/Mines | Entered Materials 1768 | -8/Materials | Evolved 2 slots: Propulsion x1, Utility x1 1940 | -8/Materials | Build established: Scavenger-Mutant 3146 | -8/Materials | Discovered new exit (range 3) 3156 | -8/Materials | Entered Factory 3156 | -7/Factory | Evolved 2 slots: Propulsion x1, Utility x1 3186 | -7/Factory | Lost 3 parts (1p2n) 3290 | -7/Factory | Discovered new exit (range 7) 3443 | -7/Factory | Build established: Mutant 3524 | -7/Factory | Entered Lower Caves 3550 | -7/Lower Caves | Encountered a Warlord checkpoint 3663 | -7/Lower Caves | Lost 3 parts (1p1n1w) 3975 | -7/Lower Caves | Acquired the password to a Derelict Tinkerer's latest research 3988 | -7/Lower Caves | Found Prototype Special Weapon 3988 | -7/Lower Caves | Identified Molecular Deconstructor 4148 | -7/Lower Caves | Discovered new exit (range 3) 4186 | -7/Lower Caves | Assimilated X-72 Disruptor with FLK Orb 4194 | -7/Lower Caves | Caught by Unaware searching for contraband prototypes 4197 | -7/Lower Caves | Assimilated X-62 Marksman with FLK Orb 4216 | -7/Lower Caves | Entered another Lower Caves area 4216 | -7/Lower Caves | Accompanied by 2 allies 4277 | -7/Lower Caves | Attacked by a delusional Derelict stockpiling parts 4598 | -7/Lower Caves | Discovered new exit (range 16) 4624 | -7/Lower Caves | Build established: Scavenger-Mutant 4674 | -7/Lower Caves | Entered Zion 4674 | -7/Zion | Accompanied by 2 allies 4740 | -7/Zion | Given A8's code to call for help 4844 | -7/Zion | Discovered new exit (range 14) 4901 | -7/Zion | Gained Derelict followers 5619 | -7/Zion | Learned Factory terminal intel 5746 | -7/Zion | Given the Hacking Drone Bay 5834 | -7/Zion | Rebuked by Imprinter 6162 | -7/Zion | Identified exit to Deep Caves 6209 | -7/Zion | Acquired unknown access codes intercepted by a Zionite 6336 | -7/Zion | Gained Derelict followers 6585 | -7/Zion | Saw the warning signs outside the Deep Caves entrance 6714 | -7/Zion | Entered Deep Caves 6714 | -7/Deep Caves | Accompanied by 8 allies 6715 | -7/Deep Caves | Met 5H-AD0 6796 | -7/Deep Caves | Z-Facility disabled 6826 | -7/Deep Caves | Attacked by Z-Imprinter 6830 | -7/Deep Caves | Assimilated WP-TQF(z) with FLK Orb 6833 | -7/Deep Caves | Assimilated 59-B0F(z) with FLK Orb 6833 | -7/Deep Caves | Allies destroyed Z-Imprinter 6906 | -7/Deep Caves | Assimilated HV-RIU(z) with FLK Orb 7095 | -7/Deep Caves | Spotted as-76313 7105 | -7/Deep Caves | Exposed GOLEM chamber 7144 | -7/Deep Caves | Allies destroyed as-76313 7149 | -7/Deep Caves | Found Prototype Protection 7149 | -7/Deep Caves | Identified Zio. Weapon Casing 7161 | -7/Deep Caves | Lost 7 parts (6n1u) 7167 | -7/Deep Caves | Found Zio. Weapon Casing 7198 | -7/Deep Caves | Triggered Deep Caves wall 7227 | -7/Deep Caves | Spotted AS-61669 7275 | -7/Deep Caves | Destroyed 44 combat bots 7307 | -7/Deep Caves | Core integrity fell below 50% 7346 | -7/Deep Caves | Spotted AS-33985 7375 | -7/Deep Caves | Destroyed 11 combat bots 7388 | -7/Deep Caves | Lost 15 parts (1p8n5u1w) 7465 | -7/Deep Caves | Found Zio. Weapon Casing 7518 | -7/Deep Caves | Found Zio. Weapon Casing 7527 | -7/Deep Caves | Found Zio. Weapon Casing 7597 | -7/Deep Caves | Spotted as-32048 7647 | -7/Deep Caves | Core integrity fell below 20% 7650 | -7/Deep Caves | System corruption reached 10% 7651 | -7/Deep Caves | Destroyed by as-82572 with Assembled Shotgun Last Messages --------------- 07646_ Slug penetrates as-47754. 07646_ Penetrated by Slug. 07647_ Carbon-fiber Leg destroyed. 07647_ Mak. Leg destroyed. 07647_ Zio. Biocell destroyed. 07647_ Zio. Phaser-S destroyed. 07648_ Carbon-fiber Leg destroyed. 07648_ System corrupted by crushing effect (+2). 07648_ Exp. Heat Sink destroyed. 07648_ System corrupted by crushing effect (+2). 07649_ Carbon-fiber Leg destroyed. 07649_ System corrupted by crushing effect (+5). 07650_ Carbon-fiber Leg destroyed. 07650_ Critical hit (Burn: +80). 07650_ Penetrated by Slug. 07650_ Slug penetrates as-15694. 07650_ Penetrated by Slug. 07651_ Knocked back. 07651_ Carbon-fiber Leg destroyed. 07651_ Penetrated by Slug. Map ----- +----------------------------------------------------+ | ???????????????????????????????????????????## | | ????????????????????????????????????????????##" | | ?????????????????????????????????????????????### | | ????????????????????????????????????????????##" | | ???????????????????????????????????????????##"" | | ??### ???????????????????????????????????## # | | ???????????????????????????????????# ! | | ???????????????????????????????????#[[# | | ???????????????????????????????????##### | | ??????????????????????????????????????## | | ??????????????????????????????????????# | | #?????????????????????? ???????????????## | | #????????????????????? ??????????#### | | ##???????????????????# ?????????## # | | #?????????????????## #?????????# | | #????????????????? ##????????# | | ?????????????????? ?????????# | | ??????????????????? ??????????## | | ######?????????????? ????????????### | | #??????#####??? ???????????????# | | #?????## ##?? ????????????????## | | ### #????## #?? #?????????????????# | | ##?# #??### #??# #??????????????##### | | ##??# #?## #?## #?????????????## ## | | ##???# #?# ### G#??????????????# ## | | ##???## ### ## @ #??????????????# # | | ##???## ## aaa ##????????????## | | #???## ### a aaaa aa############## | | #??## ###aa aaa aaaaG | | #??# aaaa aa a a a | | #??# ## [ | | #??# ############# ######;########## | | #??# #???????????#####????###????????# | | #?## #???????????????????????????????### | | ### ##?????????????????????????????????# | | ?# ###??????????????????????????????????## | | ?## ##?????????????????????????????????????# | | ??###???????????????????????????????????????# | | ????????????????????????????????????????????## | | ?????????????????????????????????????????????# | | ?????????????????????????????????????????????## # | | ??????????????????????????????????????????????#### | | | | | | | | | | | | | | | | | +----------------------------------------------------+ Best States ------------- Heat Dissipation 60 Coolant Potential 50 Energy Generation 27 Energy Capacity 700 Matter Stores 300 Matter Capacity 300 Sight Range 16 Robot Scan Range 15 Terrain Scan Density 10 Armor Coverage 1200 Weapon Shielding 100 Evasion (%) 57 Armor Integrity Analysis 30 Recoil Reduction 3 Offensive Hacking 10 Authchip Count 1 Item Schematics ----------------- Weapon Cycler | -7/Zion | Archive Hpw. Shock Rifle | -7/Zion | Archive Coolant Injector | -7/Zion | Archive Arc Thrower | -7/Zion | Archive Mak. Hacking Suite | -7/Zion | Archive Force Field | -7/Zion | Archive Gauss Rifle | -7/Zion | Archive Lrn. Proton Cannon | -7/Zion | Archive Mass Driver | -7/Zion | Archive Slug Cannon | -7/Zion | Archive Lyr. Medium Armor Plating | -7/Zion | Archive Flak Gun | -7/Zion | Archive Mak. Cloaking Device | -7/Zion | Archive Imp. Heavy Armor Plating | -7/Zion | Archive Med. Treads | -7/Zion | Archive Robot Schematics ------------------ B-48 Gladiator | -7/Zion | Archive R-06 Scavenger | -7/Zion | Archive Fabricated ------------ Nothing Alien Tech Used ----------------- None Achievements -------------- None Challenges ------------ None Game ------ Seed WeaponDecoyJammer Manual? 0 Play Time 01:02:12 Cumulative 108.7 hours Start 2022.10.21 @ 11:16:42 End 2022.10.23 @ 21:49:02 Sessions 3 Manual Loads 0 Difficulty Rogue Special Mode None Game No. 117 Rogue 117 Adventurer 0 Explorer 0 Win Type - Total 0 Types 0/0/0/0/0/0/0/0/0 Lore% 51 Gallery% 65 Achievement% 49 Wizard Run 0 Options --------- ASCII 0 Keyboard 0 Movement Mouse Keybinds 0 Fullscreen 1 Font 18/SmallcapsGlow Map View 76x50 Tactical HUD 1 Map Filters NONE Filters NONE Steam 1 RUN: df0c56b1-ed82-48cf-b4c6-eaf5d77f7620